bitfinex/quotes_BTCUSD_20250102
["timestamp","ask_amount","ask_price","bid_price","bid_amount"]
[1735789810561,0.34325932,95114.0,95113.0,0.1000853]
[1735789811508,0.35973829,95114.0,95113.0,0.1000853]
[1735789812957,0.54855521,95114.0,95113.0,0.1000853]
[1735789814868,0.54872581,95114.0,95113.0,0.1000853]
[1735789815041,0.53224684,95114.0,95113.0,0.1000853]
[1735789815259,0.52624684,95114.0,95113.0,0.1000853]
[1735789815458,0.52724684,95114.0,95113.0,0.1000853]
[1735789815703,0.53224684,95114.0,95113.0,0.1000853]
[1735789815844,0.52724684,95114.0,95113.0,0.1000853]
[1735789816043,0.52624684,95114.0,95113.0,0.1000853]
[1735789816969,0.52724684,95114.0,95113.0,0.1000853]
[1735789817375,0.33842992,95114.0,95113.0,0.1000853]
[1735789817904,0.34342992,95114.0,95113.0,0.10512532]
[1735789818126,0.33842992,95114.0,95113.0,0.10512532]
[1735789818414,0.34342992,95114.0,95113.0,0.10512532]
[1735789819602,0.57962515,95114.0,95113.0,0.10512532]
[1735789819992,0.57962515,95114.0,95113.0,0.1000853]
[1735789820180,0.34342992,95114.0,95113.0,0.1000853]
[1735789820601,0.34342992,95114.0,95113.0,0.10512532]
[1735789823241,0.0061706,95114.0,95113.0,0.14844432]
[1735789823444,0.0061706,95114.0,95113.0,0.48892032]
[1735789823808,0.16432321,95114.0,95113.0,0.79290664]
[1735789824093,0.28348097,95122.0,95121.0,0.176219]
[1735789824302,0.28348097,95122.0,95121.0,0.53911142]
[1735789824513,0.28348097,95122.0,95121.0,0.54414226]
[1735789825126,0.0001706,95123.0,95122.0,0.143319]
[1735789825350,0.0001706,95123.0,95122.0,0.24730532]
[1735789825580,0.0001706,95123.0,95122.0,0.33777545]
[1735789826373,0.0011706,95123.0,95122.0,0.33777545]
[1735789827681,0.0021706,95123.0,95122.0,0.34277545]
[1735789830957,0.01864548,95123.0,95122.0,0.25733502]
[1735789831778,0.0021706,95123.0,95122.0,0.25733502]
[1735789836886,0.0011706,95123.0,95122.0,0.25733502]
[1735789837044,0.0021706,95123.0,95122.0,0.25733502]
[1735789837454,0.0011706,95123.0,95122.0,0.25733502]
[1735789837654,0.0001706,95123.0,95122.0,0.33341052]
[1735789837857,0.0021706,95123.0,95122.0,0.33841052]
[1735789838279,0.0021706,95123.0,95122.0,0.33341052]
[1735789838473,0.0031706,95123.0,95122.0,0.33841052]
[1735789840080,0.0031706,95123.0,95122.0,0.0533487]
[1735789840320,0.0021706,95123.0,95122.0,0.0533487]
[1735789840745,0.0011706,95123.0,95122.0,0.0533487]
[1735789841148,0.0011706,95123.0,95122.0,0.0573487]
[1735789841325,0.0011706,95123.0,95122.0,0.0483487]
[1735789841470,0.0021706,95123.0,95122.0,0.0623487]
[1735789841684,0.0031706,95123.0,95122.0,0.0623487]
[1735789845219,0.0031706,95123.0,95122.0,0.0823487]
[1735789846706,0.0031706,95123.0,95122.0,0.12633608]
[1735789849264,0.0031706,95123.0,95122.0,0.0823487]
[1735789849851,0.0031706,95123.0,95122.0,0.1023487]
[1735789855236,0.01964582,95123.0,95122.0,0.1023487]
[1735789855439,0.0031706,95123.0,95122.0,0.30633502]
[1735789865866,0.0031706,95123.0,95122.0,0.40633502]
[1735789866019,0.0031706,95123.0,95122.0,0.49375122]
[1735789866666,0.0031706,95123.0,95122.0,0.50925969]
[1735789867549,0.0031706,95123.0,95122.0,0.42184349]
[1735789868360,0.0031706,95123.0,95122.0,0.51670734]
[1735789869426,0.0031706,95123.0,95122.0,0.56413927]
[1735789869632,0.01964605,95123.0,95122.0,0.56413927]
[1735789869816,0.01964605,95123.0,95122.0,0.5486308]
[1735789870790,0.0031706,95123.0,95122.0,0.40633502]
[1735789870988,0.0031706,95123.0,95122.0,0.1023487]
[1735789871806,0.0832706,95123.0,95122.0,0.1023487]
[1735789872448,0.1062706,95123.0,95122.0,0.1023487]
[1735789872647,0.1555706,95123.0,95122.0,0.0590297]
[1735789872854,0.1525706,95123.0,95122.0,0.04]
[1735789873046,0.25655692,95123.0,95122.0,0.04]
[1735789873304,0.25655692,95123.0,95122.0,0.047]
[1735789873506,0.25655692,95123.0,95122.0,0.043]
[1735789873766,0.25655692,95123.0,95122.0,0.04]
[1735789873953,0.25755692,95123.0,95122.0,0.04]
[1735789874364,0.26455692,95123.0,95122.0,0.041]
[1735789874623,0.45363782,95123.0,95122.0,0.041]
[1735789875062,0.26455692,95123.0,95122.0,0.041]
[1735789875261,0.26355692,95123.0,95122.0,0.041]
[1735789875809,0.26555692,95123.0,95122.0,0.041]
[1735789876592,0.26555692,95123.0,95122.0,0.04]
[1735789876891,0.25855692,95123.0,95122.0,0.04]
[1735789877080,0.25855692,95123.0,95122.0,0.041]
[1735789877081,0.26655692,95123.0,95122.0,0.041]
[1735789877282,0.26655692,95123.0,95122.0,0.04]
[1735789877796,0.27255692,95123.0,95122.0,0.041]
[1735789880524,0.27255692,95123.0,95122.0,0.001]
[1735789881813,0.27255692,95123.0,95122.0,0.021]
[1735789883164,0.27255692,95123.0,95122.0,0.0274319]
[1735789883580,0.27255692,95123.0,95122.0,0.021]
[1735789886296,0.27255692,95123.0,95122.0,0.041]
[1735789889605,0.28903478,95123.0,95122.0,0.041]
[1735789890673,0.27255692,95123.0,95122.0,0.041]
[1735789890885,0.27055692,95123.0,95122.0,0.041]
[1735789891218,0.27255692,95123.0,95122.0,0.041]
[1735789891718,0.27055692,95123.0,95122.0,0.041]
[1735789891937,0.27255692,95123.0,95122.0,0.061]
[1735789893060,0.42255692,95123.0,95122.0,0.061]
[1735789896153,0.42255692,95123.0,95122.0,0.081]
[1735789901543,0.42255692,95123.0,95122.0,0.101]
[1735789902492,0.37255692,95123.0,95122.0,0.101]
[1735789905142,0.38903631,95123.0,95122.0,0.101]
[1735789905347,0.37255692,95123.0,95122.0,0.101]
[1735789906167,0.38354489,95123.0,95122.0,0.101]
[1735789908620,0.4000241,95123.0,95122.0,0.101]
[1735789908835,0.38903613,95123.0,95122.0,0.101]
[1735789909045,0.37255692,95123.0,95122.0,0.101]
[1735789909249,0.37144256,95123.0,95122.0,0.101]
[1735789909860,0.37144256,95123.0,95122.0,0.1010853]
[1735789910017,0.37161316,95123.0,95122.0,0.1010853]
[1735789914864,0.56069406,95123.0,95122.0,0.1010853]
[1735789915794,0.37161316,95123.0,95122.0,0.1010853]
[1735789924052,0.65509413,95123.0,95122.0,0.1010853]
[1735789925991,0.37161316,95123.0,95122.0,0.1010853]
[1735789928881,0.3880927,95123.0,95122.0,0.1010853]
[1735789932226,0.37161316,95123.0,95122.0,0.0010853]
[1735789933372,0.32231316,95123.0,95122.0,0.0010853]
[1735789933550,0.29315692,95123.0,95122.0,0.0010853]
[1735789933755,0.29315692,95123.0,95122.0,0.0210853]
[1735789935353,0.5936615,95123.0,95122.0,0.0210853]
[1735789935566,0.57718246,95123.0,95122.0,0.0210853]
[1735789936985,0.45019614,95123.0,95122.0,0.0644043]
[1735789937903,0.44819614,95123.0,95122.0,0.0644043]
[1735789938119,0.28619614,95123.0,95122.0,0.0634043]
[1735789938286,0.29119614,95123.0,95122.0,0.0834043]
[1735789938428,0.0051706,95123.0,95122.0,0.088434]
[1735789938827,0.0061706,95123.0,95122.0,0.088434]
[1735789939295,0.0061706,95123.0,95122.0,0.137834]
[1735789939854,0.0061706,95123.0,95122.0,0.1599274]
[1735789940436,0.0051706,95123.0,95122.0,0.1599274]
[1735789941058,0.0001706,95123.0,95122.0,0.1599274]
[1735789941183,0.0011706,95123.0,95122.0,0.1599274]
[1735789941391,0.0061706,95123.0,95122.0,0.2351274]
[1735789941741,0.0001706,95123.0,95122.0,0.2351274]
[1735789941959,0.0001706,95123.0,95122.0,0.213034]
[1735789942188,0.0001706,95123.0,95122.0,0.214034]
[1735789943377,0.0001706,95123.0,95122.0,0.213034]
[1735789943820,0.0001706,95123.0,95122.0,0.233034]
[1735789944023,0.0001706,95123.0,95122.0,0.234034]
[1735789944443,0.0001706,95123.0,95122.0,0.233034]
[1735789944759,0.0001706,95123.0,95122.0,0.236034]
[1735789944895,0.0001706,95123.0,95122.0,0.240034]
[1735789948283,0.0001706,95123.0,95122.0,0.260034]
[1735789953097,0.0001706,95123.0,95122.0,0.280034]
[1735789953310,0.0001706,95123.0,95122.0,0.155434]
[1735789954283,0.0001706,95123.0,95122.0,0.148434]
[1735789954500,0.0001706,95123.0,95122.0,0.150434]
[1735789955408,0.0001706,95123.0,95122.0,0.152434]
[1735789955826,0.0001706,95123.0,95122.0,0.150434]
[1735789956210,0.0001706,95123.0,95122.0,0.152434]
[1735789962819,0.0001706,95123.0,95122.0,0.1676774]
[1735789963611,0.0001706,95123.0,95122.0,0.152434]
[1735789969169,0.0166474,95123.0,95122.0,0.152434]
[1735789969364,0.0001706,95123.0,95122.0,0.152434]
[1735789970287,0.0001706,95123.0,95122.0,0.200034]
[1735789970661,0.0001706,95123.0,95122.0,0.283334]
[1735789970942,0.0001706,95123.0,95122.0,0.56770602]
[1735789971147,0.0001706,95123.0,95122.0,0.56570602]
[1735789971524,0.0001706,95123.0,95122.0,0.57070602]
[1735789971944,0.0001706,95123.0,95122.0,0.56370602]
[1735789972167,0.0011706,95123.0,95122.0,0.57270602]
[1735789972316,0.0021706,95123.0,95122.0,0.57570602]
[1735789975509,0.0021706,95123.0,95122.0,0.67570602]
[1735789975832,0.0021706,95123.0,95122.0,0.57570602]
[1735789976938,0.0021706,95123.0,95122.0,0.67570602]
[1735789977718,0.0021706,95123.0,95122.0,0.82570602]
[1735789978621,0.0021706,95123.0,95122.0,0.84116669]
[1735789979101,6e-07,95123.0,95122.0,0.95216669]
[1735789979505,6e-07,95123.0,95122.0,1.04697541]
[1735789979863,0.0001706,95147.0,95146.0,0.253522]
[1735789980206,0.0001706,95147.0,95146.0,0.34853848]
[1735789982017,0.0001706,95147.0,95146.0,0.35153848]
[1735789983051,0.0001706,95147.0,95146.0,0.5555248]
[1735789984079,0.0001706,95147.0,95146.0,0.5545248]
[1735789984281,0.0001706,95147.0,95146.0,0.5525248]
[1735789984552,0.0011706,95147.0,95146.0,0.4765105]
[1735789984763,0.0011706,95147.0,95146.0,0.4675105]
[1735789985192,0.0001706,95147.0,95146.0,0.4625105]
[1735789985415,0.0011706,95147.0,95146.0,0.4685105]
[1735789985572,0.0011706,95147.0,95146.0,0.58149682]
[1735789989554,0.0011706,95147.0,95146.0,0.60149682]
[1735789995044,0.0011706,95147.0,95146.0,0.62149682]
[1735789999708,0.0011706,95147.0,95146.0,0.65694995]
[1735790000066,0.0011706,95147.0,95146.0,0.75694995]
[1735790003673,0.0011706,95147.0,95146.0,0.86794995]
[1735790004303,0.0011706,95147.0,95146.0,0.88794995]
[1735790006785,0.0011706,95147.0,95146.0,0.91271337]
[1735790007325,0.0011706,95147.0,95146.0,0.88794995]
[1735790008466,0.0011706,95147.0,95146.0,0.91272274]
[1735790010276,0.0011706,95147.0,95146.0,0.91693274]
[1735790015673,0.0011706,95147.0,95146.0,1.40767392]
[1735790016358,0.0011706,95147.0,95146.0,1.26584602]
[1735790017440,0.0011706,95147.0,95146.0,1.45494989]
[1735790017650,0.0011706,95147.0,95146.0,1.35096357]
[1735790017851,0.00089208,95147.0,95146.0,1.35096357]
[1735790020122,0.00089208,95147.0,95146.0,0.95488747]
[1735790021056,0.00089208,95147.0,95146.0,0.81294642]
[1735790021690,0.00089208,95147.0,95146.0,1.16242561]
[1735790022709,0.00089208,95147.0,95146.0,1.30444166]
[1735790023582,0.00089208,95147.0,95146.0,1.16242561]
[1735790023773,6.8e-07,95148.0,95147.0,0.504319]
[1735790023980,6.8e-07,95148.0,95147.0,0.60830532]
[1735790024209,6.8e-07,95148.0,95147.0,0.61330635]
[1735790024674,6.8e-07,95148.0,95147.0,0.65353227]
[1735790024816,6.8e-07,95148.0,95147.0,0.75751859]
[1735790025031,6.8e-07,95148.0,95147.0,0.76251859]
[1735790025508,6.8e-07,95148.0,95147.0,1.11199778]
[1735790026744,6.8e-07,95148.0,95147.0,1.12099778]
[1735790028713,6.8e-07,95148.0,95147.0,0.90601146]
[1735790029833,6.8e-07,95148.0,95147.0,0.88123867]
[1735790032670,6.8e-07,95148.0,95147.0,1.0708142]
[1735790034926,6.8e-07,95148.0,95147.0,0.88123867]
[1735790035679,6.8e-07,95148.0,95147.0,1.11820448]
[1735790036295,6.8e-07,95148.0,95147.0,0.88123867]
[1735790036550,6.8e-07,95148.0,95147.0,0.99746423]
[1735790040644,6.8e-07,95148.0,95147.0,0.99754953]
[1735790041127,6.8e-07,95148.0,95147.0,1.01754953]
[1735790046736,6.8e-07,95148.0,95147.0,1.03754953]
[1735790052112,6.8e-07,95148.0,95147.0,1.05754953]
[1735790053190,6.8e-07,95148.0,95147.0,0.96132397]
[1735790056937,6.8e-07,95148.0,95147.0,0.98132397]
[1735790067564,6.8e-07,95148.0,95147.0,0.88132397]
[1735790067793,6.8e-07,95148.0,95147.0,0.98132397]
[1735790071681,6.8e-07,95148.0,95147.0,1.75574278]
[1735790071934,6.8e-07,95148.0,95147.0,1.8597291]
[1735790072296,6.8e-07,95148.0,95147.0,1.08531029]
[1735790074474,6.8e-07,95148.0,95147.0,0.98132397]
[1735790080383,6.8e-07,95148.0,95147.0,0.9846193]
[1735790087502,6.8e-07,95148.0,95147.0,0.8846193]
[1735790088918,6.8e-07,95148.0,95147.0,0.9046193]
[1735790091832,6.8e-07,95148.0,95147.0,0.88916617]
[1735790091973,6.8e-07,95148.0,95147.0,0.904659]
[1735790093496,6.8e-07,95148.0,95147.0,0.924659]
[1735790098935,6.8e-07,95148.0,95147.0,0.944659]
[1735790102876,6.8e-07,95148.0,95147.0,1.04864532]
[1735790103577,6.8e-07,95148.0,95147.0,1.06864532]
[1735790106449,6.8e-07,95148.0,95147.0,1.84343039]
[1735790107291,6.8e-07,95148.0,95147.0,1.55883883]
[1735790108751,6.8e-07,95148.0,95147.0,1.57883883]
[1735790111062,6.8e-07,95148.0,95147.0,1.08864532]
[1735790118043,6.8e-07,95148.0,95147.0,1.57871562]
[1735790119839,6.8e-07,95148.0,95147.0,1.08864532]
[1735790121660,6.8e-07,95148.0,95147.0,1.37318374]
[1735790121845,6.8e-07,95148.0,95147.0,1.86326928]
[1735790124084,6.8e-07,95148.0,95147.0,1.85997395]
[1735790124276,6.8e-07,95148.0,95147.0,1.57543553]
[1735790124483,6.8e-07,95148.0,95147.0,1.57873066]
[1735790125890,6.8e-07,95148.0,95147.0,1.86321298]
[1735790126677,6.8e-07,95148.0,95147.0,1.57873066]
[1735790131093,6.8e-07,95148.0,95147.0,1.47474434]
[1735790134079,6.8e-07,95148.0,95147.0,0.9846588]
[1735790140105,6.8e-07,95148.0,95147.0,0.8846588]
[1735790141553,6.8e-07,95148.0,95147.0,0.9046588]
[1735790142548,0.08170068,95148.0,95147.0,0.9046588]
[1735790144067,0.06068068,95148.0,95147.0,0.9046588]
[1735790144445,0.01864068,95148.0,95147.0,0.9046588]
[1735790144650,2.8e-07,95148.0,95147.0,0.9046588]
[1735790145293,2.8e-07,95148.0,95147.0,0.97029169]
[1735790145725,2.8e-07,95148.0,95147.0,0.9046588]
[1735790146053,2.8e-07,95148.0,95147.0,0.9246588]
[1735790148679,2.8e-07,95148.0,95147.0,1.0356588]
[1735790148878,2.8e-07,95148.0,95147.0,0.9246588]
[1735790151403,2.8e-07,95148.0,95147.0,0.9446588]
[1735790151609,2.8e-07,95148.0,95147.0,0.97789121]
[1735790152146,2.8e-07,95148.0,95147.0,0.97289018]
[1735790152266,2.8e-07,95148.0,95147.0,0.97789121]
[1735790152691,2.8e-07,95148.0,95147.0,0.9446588]
[1735790155206,2.8e-07,95148.0,95147.0,1.4346823]
[1735790155833,2.8e-07,95148.0,95147.0,1.4546823]
[1735790156996,2.8e-07,95148.0,95147.0,1.73917224]
[1735790158777,0.07660028,95159.0,95158.0,0.353495]
[1735790158983,0.07660028,95159.0,95158.0,0.45748132]
[1735790159186,0.07660028,95159.0,95158.0,0.46246974]
[1735790159484,0.07660028,95159.0,95158.0,0.46576487]
[1735790160045,0.07660028,95159.0,95158.0,1.00789436]
[1735790161264,0.07660028,95159.0,95158.0,1.01289436]
[1735790161622,0.07660028,95159.0,95158.0,1.02838515]
[1735790162051,0.07660028,95159.0,95158.0,0.83873485]
[1735790162223,0.07660028,95159.0,95158.0,0.82324406]
[1735790163803,0.07660028,95159.0,95158.0,0.87662211]
[1735790164232,0.07660028,95159.0,95158.0,1.06627241]
[1735790164613,0.07660028,95159.0,95158.0,1.00959923]
[1735790166073,0.07660028,95159.0,95158.0,0.83873307]
[1735790166655,0.07660028,95159.0,95158.0,0.82324399]
[1735790168424,0.07660028,95159.0,95158.0,0.82341459]
[1735790168768,0.07668558,95159.0,95158.0,0.82341459]
[1735790168985,0.07668558,95159.0,95158.0,0.72341459]
[1735790169186,8.53e-05,95159.0,95158.0,0.92740091]
[1735790169348,8.53e-05,95159.0,95158.0,0.82011953]
[1735790172413,8.53e-05,95159.0,95158.0,0.96236423]
[1735790173431,8.53e-05,95159.0,95158.0,0.83891435]
[1735790174619,8.53e-05,95159.0,95158.0,1.07597722]
[1735790175143,8.53e-05,95159.0,95158.0,1.17996354]
[1735790177337,8.53e-05,95159.0,95158.0,0.92740094]
[1735790177559,8.53e-05,95159.0,95158.0,0.82341462]
[1735790179390,8.53e-05,95159.0,95158.0,0.83890999]
[1735790180802,8.53e-05,95159.0,95158.0,0.83390999]
[1735790182087,0.01655445,95159.0,95158.0,0.83390999]
[1735790182465,8.53e-05,95159.0,95158.0,0.83390999]
[1735790182695,8.53e-05,95159.0,95158.0,0.93789631]
[1735790183026,8.53e-05,95159.0,95158.0,0.92240094]
[1735790183935,8.53e-05,95159.0,95158.0,0.81841462]
[1735790184228,8.53e-05,95159.0,95158.0,0.83390439]
[1735790184433,8.53e-05,95159.0,95158.0,1.07081218]
[1735790185640,8.53e-05,95159.0,95158.0,0.83390439]
[1735790186050,0.01655256,95159.0,95158.0,0.83390439]
[1735790186251,8.53e-05,95159.0,95158.0,0.83390439]
[1735790186467,8.53e-05,95159.0,95158.0,0.81841462]
[1735790187229,8.53e-05,95159.0,95158.0,0.83390325]
[1735790189705,8.53e-05,95159.0,95158.0,0.81841462]
[1735790192911,8.53e-05,95159.0,95158.0,1.0079496]
[1735790193159,8.53e-05,95159.0,95158.0,1.0279496]
[1735790194095,0.0794853,95159.0,95158.0,0.83841462]
[1735790194797,0.0794853,95159.0,95158.0,0.83511953]
[1735790195210,0.0794853,95159.0,95158.0,0.48564034]
[1735790195423,0.09595338,95159.0,95158.0,0.48564034]
[1735790196439,0.09595338,95159.0,95158.0,0.48893546]
[1735790197046,0.09595338,95159.0,95158.0,0.48564034]
[1735790197662,0.09595338,95159.0,95158.0,0.50564034]
[1735790197911,0.01655338,95159.0,95158.0,0.60962666]
[1735790198323,0.01655338,95159.0,95158.0,1.0450754]
[1735790198524,0.01655338,95159.0,95158.0,1.04837036]
[1735790198937,0.01655338,95159.0,95158.0,1.09570234]
[1735790199459,8.53e-05,95159.0,95158.0,1.09570234]
[1735790200780,8.53e-05,95159.0,95158.0,1.09991234]
[1735790200985,8.53e-05,95159.0,95158.0,1.05255577]
[1735790201448,8.53e-05,95159.0,95158.0,0.86300739]
[1735790202391,8.53e-05,95159.0,95158.0,0.93487128]
[1735790202600,0.01655283,95159.0,95158.0,0.93487128]
[1735790202779,0.01655283,95159.0,95158.0,0.86300739]
[1735790202963,0.01655283,95159.0,95158.0,0.88300739]
[1735790203909,8.53e-05,95159.0,95158.0,0.88300739]
[1735790204247,8.53e-05,95159.0,95158.0,0.67532449]
[1735790205275,8.53e-05,95159.0,95158.0,0.5331453]
[1735790206387,8.53e-05,95159.0,95158.0,0.8830885]
[1735790207024,8.53e-05,95159.0,95158.0,1.07266075]
[1735790207184,0.01655276,95159.0,95158.0,1.07266075]
[1735790207393,0.01655276,95159.0,95158.0,1.09266075]
[1735790208127,0.01655276,95159.0,95158.0,0.9030885]
[1735790208883,0.01655276,95159.0,95158.0,0.5531453]
[1735790210453,0.01655276,95159.0,95158.0,0.54985034]
[1735790211480,0.01655276,95159.0,95158.0,0.69206361]
[1735790212188,0.01655276,95159.0,95158.0,0.69535872]
[1735790212437,0.01655276,95159.0,95158.0,0.55314545]
[1735790212671,0.01655276,95159.0,95158.0,0.57314545]
[1735790213870,0.01655276,95159.0,95158.0,0.92310915]
[1735790214832,0.01655276,95159.0,95158.0,1.1126814]
[1735790215520,0.01655276,95159.0,95158.0,1.10938629]
[1735790216777,0.01655276,95159.0,95158.0,0.71535951]
[1735790218668,0.01655276,95159.0,95158.0,0.57314539]
[1735790219770,0.01655276,95159.0,95158.0,0.92313058]
[1735790220778,8.53e-05,95159.0,95158.0,0.92313058]
[1735790221167,8.53e-05,95159.0,95158.0,1.11270283]
[1735790224950,8.53e-05,95159.0,95158.0,0.92313058]
[1735790226174,8.53e-05,95159.0,95158.0,1.16009589]
[1735790226978,8.53e-05,95159.0,95158.0,0.92313058]
[1735790228152,8.53e-05,95159.0,95158.0,1.11271489]
[1735790229082,8.53e-05,95159.0,95158.0,0.92313058]
[1735790229266,8.53e-05,95159.0,95158.0,0.91983553]
[1735790229466,8.53e-05,95159.0,95158.0,0.92313052]
[1735790229759,8.53e-05,95159.0,95158.0,1.16009939]
[1735790231657,0.01655215,95159.0,95158.0,1.16009939]
[1735790231996,0.01655215,95159.0,95158.0,0.92313052]
[1735790232404,0.01655215,95159.0,95158.0,0.91983553]
[1735790233060,0.01655215,95159.0,95158.0,1.06204322]
[1735790233475,0.01655215,95159.0,95158.0,1.0653384]
[1735790235055,3.5e-07,95161.0,95160.0,0.348491]
[1735790235262,3.5e-07,95161.0,95160.0,0.60247732]
[1735790235576,3.5e-07,95161.0,95160.0,0.60752786]
[1735790235985,3.5e-07,95161.0,95160.0,0.96080823]
[1735790236420,3.5e-07,95161.0,95160.0,0.96380823]
[1735790236607,3.5e-07,95161.0,95160.0,1.06779455]
[1735790236820,3.5e-07,95161.0,95160.0,1.06479455]
[1735790237099,0.00100035,95161.0,95160.0,1.07279455]
[1735790237681,0.00100035,95161.0,95160.0,1.08179455]
[1735790239159,0.00100035,95161.0,95160.0,0.97780823]
[1735790240011,0.00100035,95161.0,95160.0,1.16729427]
[1735790241943,0.00100035,95161.0,95160.0,0.97780823]
[1735790242209,0.00100035,95161.0,95160.0,0.9881853]
[1735790245401,0.00100035,95161.0,95160.0,1.0081853]
[1735790245992,0.00100035,95161.0,95160.0,1.19759835]
[1735790246934,0.00100035,95161.0,95160.0,1.0081853]
[1735790248895,0.00100035,95161.0,95160.0,1.24504103]
[1735790249640,0.00100035,95161.0,95160.0,1.0081853]
[1735790249846,0.00100035,95161.0,95160.0,1.0281853]
[1735790250106,0.00100035,95161.0,95160.0,1.0283559]
[1735790251280,0.00100035,95161.0,95160.0,1.26521163]
[1735790252913,0.00100035,95161.0,95160.0,1.0283559]
[1735790254576,0.00100035,95161.0,95160.0,1.26508364]
[1735790255142,0.00100035,95161.0,95160.0,1.28508364]
[1735790257245,0.00100035,95161.0,95160.0,1.0483559]
[1735790259728,0.00100035,95161.0,95160.0,1.0683559]
[1735790260472,0.00100035,95161.0,95160.0,1.25775771]
[1735790262252,0.00100035,95161.0,95160.0,1.25446253]
[1735790262483,0.00100035,95161.0,95160.0,1.06835557]
[1735790263349,0.00100035,95161.0,95160.0,1.30509505]
[1735790265119,0.00100035,95161.0,95160.0,1.32509505]
[1735790270532,0.00100035,95161.0,95160.0,1.08835557]
[1735790272082,0.00100035,95161.0,95160.0,1.0779785]
[1735790272693,0.00100035,95161.0,95160.0,1.31471798]
[1735790273764,0.08200035,95161.0,95160.0,0.9779785]
[1735790274314,0.08200035,95161.0,95160.0,1.0779785]
[1735790274531,0.08100035,95161.0,95160.0,1.0609785]
[1735790274736,0.08200035,95161.0,95160.0,1.21004314]
[1735790274941,0.08200035,95161.0,95160.0,1.21904314]
[1735790275590,0.00100035,95161.0,95160.0,1.32302946]
[1735790275942,0.00100035,95161.0,95160.0,1.0769785]
[1735790279253,0.00100035,95161.0,95160.0,1.0924401]
[1735790280710,0.00100035,95161.0,95160.0,1.32917958]
[1735790282503,0.00100035,95161.0,95160.0,1.0924401]
[1735790283340,0.00100035,95161.0,95160.0,1.28202657]
[1735790284167,0.00100035,95161.0,95160.0,1.32917958]
[1735790284373,0.00100035,95161.0,95160.0,1.22917958]
[1735790284802,0.00100035,95161.0,95160.0,1.21371798]
[1735790284980,0.00100035,95161.0,95160.0,0.9769785]
[1735790285174,0.00100035,95161.0,95160.0,0.8269785]
[1735790285379,0.08200035,95161.0,95160.0,0.72299218]
[1735790285604,0.00100035,95161.0,95160.0,0.9269785]
[1735790285762,0.00100035,95161.0,95160.0,0.92368365]
[1735790285964,3.5e-07,95161.0,95160.0,0.91668365]
[1735790286196,3.5e-07,95161.0,95160.0,0.90768365]
[1735790286433,0.00100035,95161.0,95160.0,0.92268365]
[1735790286842,0.00100035,95161.0,95160.0,1.11557932]
[1735790287854,0.00100035,95161.0,95160.0,0.92597869]
[1735790288209,0.00100035,95161.0,95160.0,0.92268365]
[1735790288773,0.00100035,95161.0,95160.0,1.0648658]
[1735790289455,0.00100035,95161.0,95160.0,0.57269846]
[1735790293262,0.00100035,95161.0,95160.0,0.66746692]
[1735790295860,0.00100035,95161.0,95160.0,0.56746692]
[1735790297231,0.00100035,95161.0,95160.0,0.58746692]
[1735790297435,0.00100035,95161.0,95160.0,0.49269846]
[1735790298346,0.08080035,95161.0,95160.0,0.49269846]
[1735790298548,0.12640035,95161.0,95160.0,0.28871214]
[1735790298747,0.12640035,95161.0,95160.0,0.07854014]
[1735790299171,0.12540035,95161.0,95160.0,0.07254014]
[1735790299517,0.12540035,95161.0,95160.0,0.06554014]
[1735790299716,0.12540035,95161.0,95160.0,0.06954014]
[1735790299920,0.12540035,95161.0,95160.0,0.06754014]
[1735790300126,0.12540035,95161.0,95160.0,0.06454014]
[1735790300534,0.12540035,95161.0,95160.0,0.06554014]
[1735790300760,0.12540035,95161.0,95160.0,0.06454014]
[1735790301093,0.12540035,95161.0,95160.0,0.06554014]
[1735790301696,0.12540035,95161.0,95160.0,0.08554014]
[1735790306832,0.12540035,95161.0,95160.0,0.10554014]
[1735790312124,0.12540035,95161.0,95160.0,0.12554014]
[1735790316628,0.12540035,95161.0,95160.0,0.14554014]
[1735790318623,3.5e-07,95161.0,95160.0,0.14554014]
[1735790329471,3.5e-07,95161.0,95160.0,0.24952646]
[1735790330719,3.5e-07,95161.0,95160.0,0.24852646]
[1735790331104,3.5e-07,95161.0,95160.0,0.25252646]
[1735790331815,3.5e-07,95161.0,95160.0,0.25152646]
[1735790332034,3.5e-07,95161.0,95160.0,0.25752646]
[1735790341768,3.5e-07,95161.0,95160.0,0.29333741]
[1735790342926,3.5e-07,95161.0,95160.0,0.35752646]
[1735790347588,3.5e-07,95161.0,95160.0,0.25752646]
[1735790349148,3.5e-07,95161.0,95160.0,0.27752646]
[1735790350946,0.0802,95179.0,95178.0,0.038319]
[1735790350947,0.03037095,95179.0,95178.0,0.038319]
[1735790351163,0.03043839,95179.0,95178.0,0.04334892]
[1735790352271,0.03243839,95179.0,95178.0,0.04334892]
[1735790354532,0.03252369,95179.0,95178.0,0.04334892]
[1735790354993,0.03052369,95179.0,95178.0,0.04334892]
[1735790355196,0.04798857,95179.0,95178.0,0.04334892]
[1735790355611,0.04698857,95179.0,95178.0,0.04334892]
[1735790355886,0.04798857,95179.0,95178.0,0.04334892]
[1735790356365,0.03152369,95179.0,95178.0,0.04334892]
[1735790358527,0.03152369,95179.0,95178.0,0.038319]
[1735790362437,0.03152369,95179.0,95178.0,0.04334892]
[1735790363404,0.03152369,95179.0,95178.0,0.06334892]
[1735790366407,0.03152369,95179.0,95178.0,0.06351952]
[1735790368966,0.03152369,95179.0,95178.0,0.08351952]
[1735790372498,4.93079569,95179.0,95178.0,0.08351952]
[1735790372669,0.03152369,95179.0,95178.0,0.08351952]
[1735790372871,0.03152369,95179.0,95178.0,0.0784896]
[1735790373282,4.93079569,95179.0,95178.0,0.0784896]
[1735790373488,0.03152369,95179.0,95178.0,0.0784896]
[1735790373948,4.93079569,95179.0,95178.0,0.0784896]
[1735790374148,4.90042474,95179.0,95178.0,0.0784896]
[1735790380415,4.98132474,95179.0,95178.0,0.0784896]
[1735790380732,5.12360867,95179.0,95178.0,0.0784896]
[1735790381170,5.04270867,95179.0,95178.0,0.0784896]
[1735790387924,0.14343667,95179.0,95178.0,0.0784896]
[1735790388080,5.19343667,95179.0,95178.0,0.0784896]
[1735790389126,5.05115274,95179.0,95178.0,0.0784896]
[1735790391069,5.19345083,95179.0,95178.0,0.0784896]
[1735790395005,5.05115274,95179.0,95178.0,0.0784896]
[1735790398217,5.19346546,95179.0,95178.0,0.0784896]
[1735790399526,5.05115274,95179.0,95178.0,0.0784896]
[1735790399847,5.05115274,95179.0,95178.0,0.0384896]
[1735790401286,5.05115274,95179.0,95178.0,0.0584896]
[1735790402270,5.05115274,95179.0,95178.0,0.2686216]
[1735790402959,5.05115274,95179.0,95178.0,0.59648438]
[1735790403096,5.05115274,95179.0,95178.0,0.59480792]
[1735790403724,5.05015274,95179.0,95178.0,0.59480792]
[1735790404034,5.05015274,95179.0,95178.0,0.59880792]
[1735790404237,5.05015274,95179.0,95178.0,0.45648892]
[1735790404532,5.05015274,95179.0,95178.0,0.74780792]
[1735790404824,5.05015274,95179.0,95178.0,0.85680792]
[1735790405202,5.05015274,95179.0,95178.0,0.75680792]
[1735790405745,5.05015274,95179.0,95178.0,0.75380792]
[1735790406054,5.05015274,95179.0,95178.0,0.77380792]
[1735790406443,4.93861364,95179.0,95178.0,0.77380792]
[1735790406643,4.905544,95179.0,95178.0,0.77880792]
[1735790406849,4.905544,95179.0,95178.0,0.86975763]